fUST/lending_fUST_20251101
["ID","MTS","AMOUNT","RATE_DAILY","PERIOD"]
[392796333,1761957047707,-3387.49241135,0.00037227,2]
[392796334,1761957047716,-4873.11108327,0.00037227,2]
[392796335,1761957047725,-189.37334655,0.00037227,2]
[392796336,1761957047734,-296.11257715,0.00037227,2]
[392796337,1761957047742,-533.00263886,0.00037227,2]
[392796338,1761957047752,-4247.02312535,0.00037227,2]
[392796339,1761957047761,-340.53115176,0.00037227,2]
[392796340,1761957047771,-1476.40251648,0.00037271,3]
[392796341,1761957047779,-1000.0,0.00037277,120]
[392796342,1761957047789,-500.0,0.00037279,2]
[392796343,1761957047797,-646.1645026,0.00037279,2]
[392796344,1761957047806,-500.0,0.00037279,2]
[392796345,1761957047816,-500.0,0.00037279,2]
[392796346,1761957047825,-500.0,0.00037279,2]
[392796347,1761957047834,-1880.0,0.0003728,2]
[392796348,1761957047843,-500.0,0.0003728,2]
[392796349,1761957047853,-1203.0,0.0003728,2]
[392796350,1761957047862,-151.0,0.0003728,2]
[392796351,1761957047871,-500.0,0.0003728,2]
[392796352,1761957047880,-500.0,0.0003728,2]
[392796353,1761957047890,-151.0,0.0003728,2]
[392796354,1761957047899,-151.0,0.0003728,2]
[392796355,1761957047909,-500.0,0.0003728,2]
[392796356,1761957047919,-371.94225671,0.0003728,2]
[392796357,1761957047928,-500.0,0.0003728,2]
[392796358,1761957047937,-500.0,0.0003728,2]
[392796359,1761957047946,-500.0,0.0003728,2]
[392796360,1761957047955,-500.0,0.0003728,2]
[392796361,1761957047965,-500.0,0.0003728,2]
[392796362,1761957047974,-151.0,0.0003728,2]
[392796363,1761957047983,-286.73930461,0.0003728,2]
[392796364,1761957047992,-151.0,0.0003728,2]
[392796365,1761957048001,-500.0,0.0003728,2]
[392796366,1761957048010,-151.0,0.0003728,2]
[392796367,1761957048019,-500.0,0.0003728,2]
[392796368,1761957048028,-500.0,0.0003728,2]
[392796369,1761957048037,-195.321749,0.00037287,31]
[392796370,1761957048048,-195.321749,0.00037287,31]
[392796371,1761957048060,-151.0,0.00037287,2]
[392796372,1761957048070,-195.321749,0.00037287,31]
[392796373,1761957048079,-151.0,0.00037287,2]
[392796374,1761957048089,-195.321749,0.00037287,31]
[392796375,1761957048099,-151.0,0.00037287,31]
[392796376,1761957048110,-151.0,0.00037287,31]
[392796377,1761957048121,-117717.364391,0.00037288,3]
[392796378,1761957048130,-1757.03623783,0.00037288,3]
[392796379,1761957048139,-151.0,0.00037298,31]
[392796380,1761957048148,-151.0,0.00037298,31]
[392796381,1761957048158,-151.0,0.00037298,31]
[392796382,1761957048167,-151.0,0.00037298,31]
[392796384,1761957048176,-151.0,0.00037298,31]
[392796385,1761957048185,-544.638488,0.00037298,31]
[392796386,1761957048194,-544.638488,0.00037298,31]
[392796387,1761957048203,-544.638488,0.00037298,31]
[392796388,1761957048212,-544.638488,0.00037298,31]
[392796389,1761957048221,-151.0,0.00037298,31]
[392796390,1761957048231,-151.430738,0.00037298,31]
[392796391,1761957048240,-151.0,0.00037298,31]
[392796392,1761957048249,-151.0,0.00037298,31]
[392796393,1761957048259,-458.72,0.000373,30]
[392796394,1761957048268,-984.0,0.00037308,2]
[392796395,1761957048278,-637.0,0.00037308,2]
[392796396,1761957048287,-2162.0,0.00037308,2]
[392796397,1761957048296,-412.0,0.00037308,2]
[392796398,1761957048305,-500.0,0.00037334,2]
[392796400,1761957048315,-500.0,0.00037334,2]
[392796401,1761957048324,-500.0,0.00037334,2]
[392796402,1761957048334,-500.0,0.00037334,2]
[392796403,1761957048343,-1880.0,0.00037334,2]
[392796404,1761957048352,-500.0,0.00037334,2]
[392796405,1761957048362,-1203.0,0.00037334,2]
[392796406,1761957048371,-151.0,0.00037334,2]
[392796407,1761957048380,-500.0,0.00037334,2]
[392796408,1761957048390,-221.32531695,0.00037334,2]
[392796409,1761957048400,-151.0,0.00037334,2]
[392796410,1761957048410,-500.0,0.00037334,2]
[392796411,1761957048521,-500.0,0.00037334,2]
[392796412,1761957048532,-500.0,0.00037334,2]
[392796413,1761957048541,-500.0,0.00037334,2]
[392796414,1761957048550,-500.0,0.00037334,2]
[392796415,1761957048560,-151.0,0.00037334,2]
[392796416,1761957048569,-151.0,0.00037334,2]
[392796417,1761957048580,-160.83461363,0.00037334,2]
[392796418,1761957048593,-151.0,0.00037334,2]
[392796419,1761957048602,-386.14722921,0.00037334,2]
[392796420,1761957048611,-150.0,0.00037337,2]
[392796421,1761957048623,-168.0,0.0003737,2]
[392796422,1761957048632,-500.0,0.00037389,30]
[392796423,1761957048641,-303.77453925,0.00037389,2]
[392796424,1761957048650,-322.34993442,0.00037389,2]
[392796425,1761957048661,-500.0,0.00037389,2]
[392796426,1761957048670,-500.0,0.00037389,2]
[392796427,1761957048681,-1880.0,0.00037389,2]
[392796428,1761957048691,-500.0,0.00037389,2]
[392796429,1761957048700,-1203.0,0.00037389,2]
[392796430,1761957048709,-151.0,0.00037389,2]
[392796431,1761957048719,-500.0,0.00037389,2]
[392796432,1761957048728,-151.0,0.00037389,2]
[392796433,1761957048738,-500.0,0.00037389,2]
[392796434,1761957048747,-500.0,0.00037389,2]
[392796436,1761957048756,-500.0,0.00037389,2]
[392796437,1761957048765,-500.0,0.00037389,2]
[392796438,1761957048775,-500.0,0.00037389,2]
[392796439,1761957048785,-151.0,0.00037389,2]
[392796440,1761957048794,-234.52738612,0.00037389,2]
[392796441,1761957048803,-151.0,0.00037389,2]
[392796442,1761957048812,-640.0,0.00037426,7]
[392796443,1761957048821,-117717.364391,0.00037434,3]
[392796444,1761957048830,-1757.03623783,0.00037434,3]
[392796445,1761957048839,-195.321749,0.00037434,31]
[392796446,1761957048847,-195.321749,0.00037434,31]
[392796447,1761957048856,-151.0,0.00037434,2]
[392796448,1761957048865,-195.321749,0.00037434,31]
[392796449,1761957048875,-151.0,0.00037434,2]
[392796450,1761957048884,-195.321749,0.00037434,31]
[392796451,1761957048893,-151.0,0.00037434,31]
[392796452,1761957048902,-971.0,0.00037436,2]
[392796453,1761957048911,-500.0,0.00037444,2]
[392796454,1761957048920,-500.0,0.00037444,2]
[392796455,1761957048930,-1880.0,0.00037444,2]
[392796456,1761957048939,-500.0,0.00037444,2]
[392796457,1761957048949,-1203.0,0.00037444,2]
[392796458,1761957048958,-192.66784359,0.00037444,2]
[392796459,1761957048968,-161.53790112,0.00037444,2]
[392796460,1761957048979,-222.16518106,0.00037444,2]
[392796461,1761957048989,-500.0,0.00037444,2]
[392796462,1761957048999,-500.0,0.00037444,2]
[392796463,1761957049010,-500.0,0.00037444,2]
[392796464,1761957049019,-500.0,0.00037444,2]
[392796465,1761957049028,-500.0,0.00037444,2]
[392796466,1761957049037,-230.94243275,0.00037444,2]
[392796467,1761957049046,-245.0,0.00037444,2]
[392796468,1761957049057,-1429.0,0.00037491,2]
[392796469,1761957049066,-500.0,0.00037499,2]
[392796470,1761957049075,-500.0,0.00037499,2]
[392796471,1761957049085,-1880.0,0.00037499,2]
[392796472,1761957049095,-553.79035286,0.00037499,2]
[392796473,1761957049104,-1203.0,0.00037499,2]
[392796474,1761957049113,-500.0,0.00037499,2]
[392796475,1761957049122,-500.0,0.00037499,2]
[392796476,1761957049133,-500.0,0.00037499,2]
[392796477,1761957049144,-364.28606453,0.00037499,2]
[392796478,1761957049154,-500.0,0.00037499,2]
[392796479,1761957049163,-152.627296,0.00037516,31]
[392796480,1761957049174,-151.0,0.00037516,31]
[392796481,1761957049184,-544.638488,0.00037516,31]
[392796482,1761957049194,-544.638488,0.00037516,31]
[392796483,1761957049204,-544.638488,0.00037516,31]
[392796484,1761957049213,-544.638488,0.00037516,31]
[392796485,1761957049225,-151.0,0.00037516,31]
[392796486,1761957049235,-151.0,0.00037516,31]
[392796487,1761957049244,-151.0,0.00037516,31]
[392796488,1761957049253,-213.0,0.00037533,2]
[392796489,1761957049263,-500.0,0.00037553,2]
[392796490,1761957049273,-500.0,0.00037553,2]
[392796491,1761957049283,-1880.0,0.00037554,2]
[392796492,1761957049292,-1203.0,0.00037554,2]
[392796493,1761957049302,-345.53490704,0.00037554,2]
[392796494,1761957049312,-500.0,0.00037554,2]
[392796495,1761957049322,-500.0,0.00037554,2]
[392796496,1761957049333,-500.0,0.00037554,2]
[392796497,1761957049343,-500.0,0.00037573,5]
[392796498,1761957049354,-151.0,0.00037588,31]
[392796499,1761957049365,-152.976021,0.00037588,31]
[392796500,1761957049374,-971.0,0.00037592,7]
[392796501,1761957049383,-151.0,0.00037598,31]
[392796502,1761957049393,-500.0,0.00037608,2]
[392796503,1761957049402,-297.75378958,0.00037608,2]
[392796504,1761957049412,-1880.0,0.00037608,2]
[392796505,1761957049420,-1203.0,0.00037608,2]
[392796506,1761957049429,-500.0,0.00037608,2]
[392796507,1761957049438,-500.0,0.00037608,2]
[392796508,1761957049447,-500.0,0.00037608,2]
[392796509,1761957049457,-161.782481,0.00037616,5]
[392796510,1761957049467,-1052.53846151,0.0003763,2]
[392796511,1761957049476,-1757.03623783,0.00037653,3]
[392796512,1761957049486,-500.0,0.00037663,30]
[392796513,1761957049495,-500.0,0.00037663,2]
[392796514,1761957049504,-1880.0,0.00037663,2]
[392796515,1761957049513,-1203.0,0.00037663,2]
[392796516,1761957049523,-593.1046087,0.00037663,2]
[392796517,1761957049532,-500.0,0.00037663,2]
[392796518,1761957049541,-497.15385409,0.00037663,2]
[392796519,1761957049550,-277.738654,0.00037689,31]
[392796520,1761957049559,-161.782481,0.000377,14]
[392796521,1761957049568,-971.0,0.0003771,7]
[392796522,1761957049579,-500.0,0.00037718,2]
[392796523,1761957049591,-1880.0,0.00037718,2]
[392796524,1761957049600,-1203.0,0.00037718,2]
[392796525,1761957049609,-500.0,0.00037718,2]
[392796526,1761957049619,-5271.10871349,0.00037728,3]
[392796527,1761957049629,-1757.03623783,0.00037728,3]
[392796528,1761957049637,-19327.3986161,0.00037738,3]
[392796529,1761957049646,-151.0,0.00037738,31]
[392796530,1761957049656,-544.638488,0.00037738,31]
[392796531,1761957049666,-544.638488,0.00037738,31]
[392796532,1761957049675,-544.638488,0.00037738,31]
[392796533,1761957049684,-544.638488,0.00037738,31]
[392796534,1761957049693,-151.0,0.00037738,31]
[392796535,1761957049702,-151.0,0.00037738,31]
[392796536,1761957049711,-45492.64171294,0.00037748,2]
[392796537,1761957049753,-101375.65042818,0.00037748,2]
[392796581,1761957197853,150.0,0.0002589,2]
[392796662,1761957480028,176.05,0.00018082,5]
[392796678,1761957509444,219.83964805,0.0002589,2]
[392796836,1761958033632,160.0,0.000356,45]
[392796838,1761958039388,160.0,0.000356,45]
[392796917,1761958232354,-150.0,0.00035271,2]
[392796918,1761958232364,-944.46593539,0.00035421,2]
[392796924,1761958232420,-802.36442141,0.00035421,2]
[392796926,1761958232430,-380.0,0.0003547,2]
[392796929,1761958232440,-999.0,0.00035907,120]
[392796930,1761958232449,-300.0,0.00036984,3]
[392796932,1761958232458,-1600.0,0.00036984,3]
[392796934,1761958232468,-400.0,0.00036985,3]
[392796936,1761958232477,-223.0,0.00036985,3]
[392796939,1761958232487,-300.0,0.00036985,3]
[392796941,1761958232496,-400.0,0.00036985,2]
[392796943,1761958232505,-10309.73727113,0.0003699,2]
[392796945,1761958232517,-637.05455345,0.0003699,2]
[392796947,1761958232528,-1095.1,0.0003699,2]
[392796949,1761958232539,-3621.30286116,0.0003699,2]
[392796951,1761958232549,-150.0,0.0003727,2]
[392796953,1761958232558,-300.0,0.0003727,2]
[392796955,1761958232567,-450.0,0.0003727,2]
[392796957,1761958232577,-600.0,0.0003727,2]
[392796959,1761958232586,-750.0,0.0003727,2]
[392796962,1761958232595,-807.12271215,0.0003727,2]
[392796965,1761958232604,-1000.0,0.00037277,120]
[392796967,1761958232614,-160.0,0.000373,120]
[392796969,1761958232623,-1197.83750394,0.00037384,2]
[392796971,1761958232632,-1479.08232285,0.00037444,2]
[392796973,1761958232641,-333.86962322,0.00037444,2]
[392796975,1761958232651,-465.317,0.00037484,2]
[392796977,1761958232660,-627.0,0.00037484,2]
[392796979,1761958232670,-2162.0,0.00037484,2]
[392796981,1761958232679,-947.56024687,0.00037499,2]
[392796983,1761958232688,-292.42834866,0.00037499,2]
[392796985,1761958232698,-172.48401537,0.00037528,2]
[392796987,1761958232707,-500.0,0.00037537,15]
[392796989,1761958232716,-500.0,0.00037537,15]
[392796991,1761958232726,-500.0,0.00037537,15]
[392796993,1761958232735,-500.0,0.00037537,15]
[392796995,1761958232744,-500.0,0.00037537,2]
[392796997,1761958232754,-603.85586983,0.00037537,15]
[392796999,1761958232763,-500.0,0.00037537,15]
[392797001,1761958232772,-500.0,0.00037537,15]
[392797003,1761958232782,-500.0,0.00037537,15]
[392797005,1761958232791,-500.0,0.00037537,2]
[392797007,1761958232800,-500.0,0.00037537,15]
[392797010,1761958232816,-500.0,0.00037537,15]
[392797011,1761958232825,-500.0,0.00037537,15]
[392797013,1761958232834,-500.0,0.00037537,15]
[392797015,1761958232843,-500.0,0.00037537,2]
[392797017,1761958232852,-500.0,0.00037537,15]
[392797019,1761958232862,-500.0,0.00037537,15]
[392797021,1761958232871,-500.0,0.00037537,15]
[392797023,1761958232880,-500.0,0.00037537,15]
[392797025,1761958232889,-500.0,0.00037537,15]
[392797027,1761958232898,-500.0,0.00037537,2]
[392797029,1761958232908,-500.0,0.00037537,15]
[392797031,1761958232917,-551.08777388,0.00037537,15]
[392797033,1761958232926,-500.0,0.00037537,15]
[392797035,1761958232935,-16161.68717768,0.00037538,2]
[392797176,1761958238252,-500.0,0.00037537,15]
[392797177,1761958238262,-500.0,0.00037537,15]
[392797178,1761958238272,-500.0,0.00037537,2]
[392797179,1761958238281,-245.88570522,0.00037537,15]
[392797180,1761958238294,-500.0,0.00037537,15]
[392797181,1761958238303,-500.0,0.00037537,15]
[392797182,1761958238312,-500.0,0.00037537,15]
[392797183,1761958238322,-500.0,0.00037537,15]
[392797184,1761958238334,-500.0,0.00037537,15]
[392797185,1761958238345,-500.0,0.00037537,2]
[392797186,1761958238354,-500.0,0.00037537,15]
[392797187,1761958238364,-500.0,0.00037537,15]
[392797188,1761958238373,-500.0,0.00037537,15]
[392797189,1761958238382,-236.73314079,0.00037537,15]
[392797190,1761958238393,-263.26685921,0.00037537,15]
[392797191,1761958238402,-314.83229562,0.00037537,2]
[392797203,1761958240570,-185.16770438,0.00037537,2]
[392797204,1761958240580,-86.18937673,0.00037537,15]
[392797205,1761958240624,-413.81062327,0.00037537,15]
[392797206,1761958240634,-201.03857673,0.00037537,15]
[392797207,1761958240678,-298.96142327,0.00037537,15]
[392797208,1761958240688,-591.05727481,0.00037537,2]
[392797209,1761958240697,-500.0,0.00037537,15]
[392797210,1761958240707,-500.0,0.00037537,15]
[392797211,1761958240716,-500.0,0.00037537,15]
[392797212,1761958240726,-205.63737028,0.00037537,15]
[392797214,1761958240735,-500.0,0.00037537,15]
[392797215,1761958240745,-500.0,0.00037537,15]
[392797216,1761958240754,-500.0,0.00037537,15]
[392797217,1761958240763,-500.0,0.00037537,15]
[392797218,1761958240772,-500.0,0.00037537,15]
[392797219,1761958240781,-500.0,0.00037537,15]
[392797220,1761958240790,-5831.19815741,0.00037538,2]
[392797221,1761958240799,-249.01,0.00037593,5]
[392797222,1761958240808,-161.77,0.00037593,5]
[392797223,1761958240817,-168.0,0.00037593,2]
[392797224,1761958240826,-332.35,0.00037608,10]
[392797225,1761958240835,-276.96,0.00037608,10]
[392797226,1761958240844,-230.8,0.00037608,10]
[392797227,1761958240853,-151.0,0.00037615,2]
[392797228,1761958240862,-151.0,0.00037615,2]
[392797229,1761958240871,-151.0,0.00037615,2]
[392797230,1761958240880,-151.0,0.00037615,2]
[392797231,1761958240889,-151.0,0.00037615,2]
[392797232,1761958240898,-151.0,0.00037615,2]
[392797233,1761958240907,-151.0,0.00037615,2]
[392797234,1761958240919,-151.0,0.00037615,2]
[392797235,1761958240928,-151.0,0.00037615,2]
[392797236,1761958240937,-151.0,0.00037615,2]
[392797237,1761958240946,-151.0,0.00037615,2]
[392797238,1761958240956,-151.0,0.00037615,2]
[392797239,1761958240966,-151.0,0.00037615,2]
[392797240,1761958240975,-151.0,0.00037615,2]
[392797241,1761958240984,-151.0,0.00037615,2]
[392797242,1761958240993,-151.0,0.00037615,2]
[392797243,1761958241003,-124.35324303,0.00037615,2]
[392797291,1761958243536,-192.34,0.00037608,10]
[392797292,1761958243547,-26.64675697,0.00037615,2]
[392797293,1761958243558,-151.0,0.00037615,2]
[392797294,1761958243568,-127.69424954,0.00037615,2]
[392797295,1761958243580,-23.30575046,0.00037615,2]
[392797296,1761958243589,-151.0,0.00037615,2]
[392797297,1761958243599,-161.782481,0.00037616,5]
[392797298,1761958243609,-190.02895288,0.00037617,15]
[392797299,1761958243618,-286152.53679403,0.00037618,3]
[392797300,1761958243628,-2307.295224,0.00037618,3]
[392797340,1761958339736,359.437207,0.00013699,2]
[392797341,1761958339919,359.437207,0.00020187,2]
[392797343,1761958340188,-314.90810272,0.00026676,2]
[392797344,1761958340322,-44.52910428,0.00026676,2]
[392797391,1761958431623,177.0,0.0002589,2]
[392797423,1761958558311,-359.437207,0.00033165,2]
[392797424,1761958558337,-160.0,0.00034248,3]
[392797425,1761958558369,-150.0,0.00034991,2]
[392797426,1761958558505,-7256.773965,0.00035099,2]
[392797427,1761958558530,-10000.01,0.00035099,2]
[392797428,1761958558664,-10000.01,0.00035099,2]
[392797429,1761958558937,-10000.01,0.00035099,2]
[392797432,1761958567127,-4277.4286049,0.00035099,2]
[392797445,1761958606602,170.33778036,0.00035616,30]
[392797480,1761958742092,214.40244105,0.0002589,2]
[392797529,1761958984943,-200.0,0.0002905,2]
[392797555,1761959055265,150.0,0.0002589,2]
[392797556,1761959055903,-194.61004345,0.0002789,2]
[392797567,1761959110115,29967.9772,0.00035616,30]
[392797649,1761959345058,-150.0,0.00030302,2]
[392797654,1761959366961,177.0,0.0002589,2]
[392797666,1761959420658,-150.0,0.00030298,2]
[392797688,1761959432578,-150.0,0.00033056,2]
[392797690,1761959432587,-514.2263274,0.0003527,2]
[392797692,1761959432596,-179.9460162,0.00035482,14]
[392797694,1761959432606,-150.0,0.00035811,2]
[392797696,1761959432615,-160.0,0.00036048,4]
[392797697,1761959432625,-851.0,0.0003612,2]
[392797699,1761959432634,-412.0,0.00036617,2]
[392797701,1761959432643,-971.0,0.0003674,7]
[392797703,1761959432652,-1600.0,0.00036843,3]
[392797705,1761959432662,-400.0,0.00036844,2]
[392797707,1761959432671,-300.0,0.00036844,3]
[392797709,1761959432681,-2025.40634865,0.00036845,2]
[392797711,1761959432691,-168.0,0.00036859,2]
[392797713,1761959432700,-38070.70588771,0.0003687,2]
[392797714,1761959432709,-1600.0,0.00036871,3]
[392797716,1761959432718,-883.3592488,0.00036872,2]
[392797718,1761959432728,-971.0,0.0003706,2]
[392797720,1761959432737,-851.0,0.00037097,7]
[392797722,1761959432746,-2025.40634865,0.00037118,2]
[392797724,1761959432755,-971.0,0.00037272,120]
[392797725,1761959432764,-864.5659281,0.00037283,2]
[392797726,1761959432773,-500.0,0.00037289,15]
[392797727,1761959432783,-459.6406714,0.00037289,15]
[392797728,1761959432903,-500.0,0.00037289,2]
[392797729,1761959432913,-500.0,0.00037289,15]
[392797730,1761959432922,-500.0,0.00037289,15]
[392797731,1761959432931,-301.87865734,0.00037289,15]
[392797732,1761959432940,-500.0,0.00037289,2]
[392797733,1761959432950,-500.0,0.00037289,15]
[392797734,1761959432959,-562.51792785,0.00037289,15]
[392797735,1761959432968,-500.0,0.00037289,15]
[392797736,1761959432977,-500.0,0.00037289,2]
[392797737,1761959432987,-500.0,0.00037289,15]
[392797738,1761959432996,-500.0,0.00037289,15]
[392797739,1761959433006,-247.24168192,0.00037289,2]
[392797740,1761959433015,-500.0,0.00037289,2]
[392797741,1761959433025,-500.0,0.00037289,15]
[392797742,1761959433035,-500.0,0.00037289,15]
[392797743,1761959433044,-495.7693375,0.00037289,15]
[392797744,1761959433053,-500.0,0.00037289,15]
[392797745,1761959433063,-500.0,0.00037289,15]
[392797746,1761959433073,-500.0,0.00037289,2]
[392797747,1761959433083,-500.0,0.00037289,15]
[392797748,1761959433092,-500.0,0.00037289,2]
[392797749,1761959433102,-500.0,0.00037289,15]
[392797750,1761959433112,-572.77720737,0.00037289,15]
[392797751,1761959433121,-7279.52742973,0.00037294,2]
[392797752,1761959433134,-5606.38656167,0.00037294,2]
[392797753,1761959433143,-1193.36495251,0.00037356,2]
[392797754,1761959433152,-2025.40634866,0.00037377,2]
[392797755,1761959433161,-96.87138395,0.00037474,3]
[392797785,1761959438480,-1181.82048043,0.00036771,2]
[392797787,1761959438489,-3689.20569,0.00037474,3]
[392797789,1761959438499,-2740.08586094,0.00037474,3]
[392797791,1761959438509,-150.0,0.00037484,2]
[392797793,1761959438519,-150.0,0.00037484,2]
[392797795,1761959438528,-1560.0,0.00037484,2]
[392797797,1761959438537,-151.0,0.00037505,2]
[392797799,1761959438547,-151.0,0.00037505,2]
[392797801,1761959438556,-151.0,0.00037505,2]
[392797803,1761959438565,-151.0,0.00037505,2]
[392797805,1761959438574,-151.0,0.00037505,2]
[392797807,1761959438583,-151.0,0.00037505,2]
[392797809,1761959438592,-151.0,0.00037505,2]
[392797811,1761959438601,-151.0,0.00037505,2]
[392797813,1761959438611,-151.0,0.00037505,2]
[392797815,1761959438620,-151.0,0.00037505,2]
[392797817,1761959438629,-151.0,0.00037505,2]
[392797819,1761959438638,-151.0,0.00037505,2]
[392797821,1761959438647,-151.0,0.00037505,2]
[392797823,1761959438656,-151.0,0.00037505,2]
[392797825,1761959438665,-151.0,0.00037505,2]
[392797827,1761959438674,-151.0,0.00037505,2]
[392797829,1761959438683,-151.0,0.00037505,2]
[392797831,1761959438692,-151.0,0.00037505,2]
[392797833,1761959438702,-151.0,0.00037505,2]
[392797835,1761959438711,-151.0,0.00037505,2]
[392797837,1761959438720,-3211.24153852,0.00037508,3]
[392797842,1761959438763,-4360.91260938,0.00037508,3]
[392797844,1761959438773,-5480.17172188,0.00037508,3]
[392797846,1761959438782,-331.71378434,0.00037517,15]
[392797848,1761959438791,-3512.94386197,0.00037518,3]
[392797851,1761959438803,-11016.3885217,0.00037518,3]
[392798029,1761959440778,-3569.38651395,0.00037518,3]
[392798325,1761959443676,-38692.43721158,0.00037518,3]
[392798327,1761959443685,-41101.2879141,0.00037518,3]
[392798330,1761959443695,-160.28,0.00037518,10]
[392798332,1761959443704,-255188.38974416,0.00037528,2]
[392798365,1761959473905,150.0,0.00031002,2]
[392798387,1761959539982,-150.0,0.00030405,2]
[392798392,1761959560969,-610.50931375,0.0003734,40]
[392798393,1761959560998,-412.0,0.00037465,2]
[392798394,1761959561026,-400.0,0.00037501,2]
[392798395,1761959561157,-6463.58893145,0.00037502,2]
[392798396,1761959561215,-1600.0,0.00037501,3]
[392798397,1761959561250,-6800.01,0.00037502,2]
[392798398,1761959561356,-2204.23321433,0.00037502,2]
[392798399,1761959561385,-801.42,0.00037518,10]
[392798400,1761959561412,-232.19964903,0.00037527,15]
[392798401,1761959561440,-360.80463133,0.00037527,2]
[392798402,1761959561469,-340.27976976,0.00037527,15]
[392798403,1761959561496,-396.97524526,0.00037527,15]
[392798405,1761959567280,1328.18498058,0.00037528,2]
[392798406,1761959567302,3671.81501942,0.00037528,2]
[392798409,1761959575601,300.0,0.00037528,2]
[392798411,1761959583650,5000.0,0.00026,2]
[392798419,1761959601231,-239.17040358,0.00031929,2]
[392798422,1761959605320,300.0,0.00026,2]
[392798423,1761959605640,-174.22865663,0.00031929,2]
[392798425,1761959606068,-148.71771696,0.00031929,2]
[392798426,1761959607143,25.51093967,0.00026,2]
[392798427,1761959607164,4974.48906033,0.00026,2]
[392798433,1761959622468,300.0,0.00026,2]
[392798436,1761959630337,4425.52093967,0.00026,2]
[392798437,1761959630361,574.47906033,0.00026,2]
[392798441,1761959645582,223.10770192,0.00026,2]
[392798442,1761959645603,422.50762519,0.00026,2]
[392798445,1761959659953,-246.3546561,0.00032119,2]
[392798448,1761959675063,-245.23584978,0.00032119,2]
[392798449,1761959677608,-336.39839365,0.00032119,2]
[392798450,1761959678385,-336.39839365,0.00032119,2]
[392798451,1761959678479,150.0,0.0002589,2]
[392798453,1761959691243,-229.41359395,0.0002789,2]
[392798454,1761959693240,-13.26495059,0.0002789,2]
[392798455,1761959705063,-167.42942248,0.00026575,21]
[392798456,1761959705087,-15.30562696,0.00032119,2]
[392798459,1761959730584,-390.58891419,0.00032019,2]
[392798460,1761959730612,-3820.30707986,0.00032119,2]
[392798462,1761959730819,-1600.0,0.00035259,3]
[392798463,1761959737865,2050.56940687,0.00025204,30]
[392798491,1761959872066,-997.0,0.00036662,7]
[392798492,1761959872094,-220.0,0.00037389,2]
[392798493,1761959872122,-1424.0,0.00037389,3]
[392798494,1761959872426,-9849.25132638,0.0003739,2]
[392798495,1761959872566,-462.6367708,0.0003739,2]
[392798496,1761959872596,-1034.09292042,0.0003739,2]
[392798497,1761959872624,-333.6494769,0.0003739,2]
[392798498,1761959872653,-412.0,0.00037465,2]
[392798499,1761959872680,-160.0,0.00037486,2]
[392798500,1761959872719,-162.53975432,0.00037489,15]
[392798501,1761959872850,-4870.17215512,0.0003749,3]
[392798503,1761959874965,-10000.01,0.0003749,3]
[392798504,1761959875146,-10000.01,0.0003749,3]
[392798505,1761959875276,-10000.01,0.0003749,3]
[392798514,1761959914504,158015.03,0.00034,120]
[392798522,1761960006544,-472.851084,0.00035163,2]
[392798523,1761960006574,-400.0,0.00037289,3]
[392798524,1761960006603,-1546.11512168,0.0003729,3]